Cogmind - Beta 11.2 @@@ ROGUE MODE // 2022.12.28 @ 16:32:11 // Winter2022/Polymind Player: bugsniper Result: Destroyed by C-40 Crusher with Compactor Performance ------------- Evolutions (3) 1500 Regions Visited (7) 1400 Robots Destroyed (3) 15 Value Destroyed (40) 40 Prototype IDs (0) 0 Alien Tech Used (0) 0 Bonus (3218) 3218 TOTAL SCORE: 5773 Bonus ------- Polymind Skill 2570 Pacifist 634 Follower Combat Kills 14 Cogmind --------- Core Integrity 0/700 Matter 0/0 Energy 100/100 System Corruption 5% Temperature Cool (98) Movement Core (50) Location -7/Waste Parts ------- > --- POWER (1) -------- (None) > --- PROPULSION (2) --- (None) > --- UTILITY (3) ------ (None) > --- WEAPON (2) ------- (None) > --- INVENTORY (0) ---- (None) Peak State ------------ > --- POWER ------------ Improved Deuterium Engine > --- PROPULSION ------- Light Treads Light Treads > --- UTILITY ---------- Improved Heat Sink Improved Heat Sink Improved Light Armor Plating > --- WEAPON ----------- Gatling Laser Flak Gun > --- INVENTORY -------- (None) [Rating: 23] Favorites ----------- Power Light Ion Engine Engine Light Ion Engine Propulsion Flight Unit Treads Light Treads Flight Unit Flight Unit Utility Improved Heat Sink Device Improved Heat Sink Protection Improved Light Armor Plating Weapon Light Assault Rifle Energy Gun Gatling Laser Ballistic Gun Light Assault Rifle Build | -11 -10 -10 -10 -9 -8 -7 -7 ------- Run | Scr Mat Min Exi Min Mat Fac Was Slots Evolved . | . . . . . . . . Power . | . . . . . . . . Propulsion . | . . . . . . . . Utility . | . . . . . . . . Weapon . | . . . . . . . . Parts Attached . | . . . . . . . . Power . | . . . . . . . . Engine . | . . . . . . . . Core . | . . . . . . . . Reactor . | . . . . . . . . Propulsion . | . . . . . . . . Treads . | . . . . . . . . Leg . | . . . . . . . . Wheel . | . . . . . . . . Hover . | . . . . . . . . Flight . | . . . . . . . . Utility . | . . . . . . . . Device . | . . . . . . . . Storage . | . . . . . . . . Processor . | . . . . . . . . Hackware . | . . . . . . . . Protection . | . . . . . . . . Artifact . | . . . . . . . . Weapon . | . . . . . . . . Energy Gun . | . . . . . . . . Energy Cannon . | . . . . . . . . Ballistic Gun . | . . . . . . . . Ballistic Cannon . | . . . . . . . . Launcher . | . . . . . . . . Special Weapon . | . . . . . . . . Impact Weapon . | . . . . . . . . Slashing Weapon . | . . . . . . . . Piercing Weapon . | . . . . . . . . Special Melee Weapon . | . . . . . . . . Unidentified Prototypes . | . . . . . . . . Parts Lost 2 | . . . . . . . 2 Power . | . . . . . . . . Propulsion 1 | . . . . . . . 1 Utility . | . . . . . . . . Weapon 1 | . . . . . . . 1 Highest Loss Streak 2 | . . . . . . . 2 To Critical Strikes . | . . . . . . . . Average Slot Usage (%) 67 | . . 22 75 75 75 86 77 Engine 17 | . . 7 25 25 25 15 9 Treads 6 | . . . . . . 15 19 Flight 14 | . . 7 25 25 25 8 . Device 6 | . . . . . . 15 19 Protection 2 | . . . . . . 7 9 Energy Gun 2 | . . . . . . 7 9 Ballistic Gun 17 | . . 7 25 25 25 15 9 Naked Turns 139 | . 40 69 . . . 7 23 Heaviest Build 23 | . . 4 4 4 4 23 23 Greatest Support 40 | 3 3 4 4 4 4 40 40 Greatest Overweight (x) . | . . . . . . . . Average Overweight (x) . | . . . . . . . . Largest Inventory Capacity 1 | . . . . . . 1 1 Average Capacity . | . . . . . . . . Most Carried . | . . . . . . . . Average Carried . | . . . . . . . . Final Capacity 1 | . . . . . . 1 . Final Carried . | . . . . . . . . Class Distribution -------------------- 57% | Swarmer 23% | Sentry 18% | Cogmind Dominant Class ---------------- Cogmind | -10/Materials Cogmind | -10/Mines Swarmer | -10/Exiles Swarmer | -9/Mines Swarmer | -8/Materials Sentry | -7/Factory Sentry | -7/Waste Resources | -11 -10 -10 -10 -9 -8 -7 -7 ----------- Run | Scr Mat Min Exi Min Mat Fac Was Matter Collected . | . . . . . . . . Remotely . | . . . . . . . . Salvage Created 55 | . . . . . . 55 . Parts 7 | . . . . . . 7 . Haulers Intercepted . | . . . . . . . . Recyclers Shooed . | . . . . . . . . Parts Field Recycled . | . . . . . . . . Retrieved Matter . | . . . . . . . . Parts Self-Destructed . | . . . . . . . . Prevented . | . . . . . . . . Kills | -11 -10 -10 -10 -9 -8 -7 -7 ------- Run | Scr Mat Min Exi Min Mat Fac Was Combat Hostiles Destroyed 1 | . . . . . . 1 . Guns 1 | . . . . . . 1 . Classes Destroyed 3 | . . . . . . 3 . Builder 1 | . . . . . . 1 . Watcher 1 | . . . . . . 1 . Swarmer 1 | . . . . . . 1 . Best Kill Streak 3 | . . . . . . 3 . Combat Bots Only 1 | . . . . . . 1 . Max Kills in Single Turn 1 | . . . . . . 1 . Gunslinging . | . . . . . . . . Exploded . | . . . . . . . . Melee . | . . . . . . . . Uniques/NPCs Destroyed . | . . . . . . . . Combat | -11 -10 -10 -10 -9 -8 -7 -7 -------- Run | Scr Mat Min Exi Min Mat Fac Was Damage Taken 923 | . . 6 . . 49 135 733 Core 768 | . . 6 . . 36 103 623 Absorbed by Shields . | . . . . . . . . Core Remaining (%) 96 | 100 . . . 97 93 . . Volleys Fired 3 | . . . . . . 3 . Largest 2 | . . . . . . 2 . Hottest 108 | . . . . . . 108 . Shots Fired 6 | . . . . . . 6 . Gun 6 | . . . . . . 6 . Cannon . | . . . . . . . . Launcher . | . . . . . . . . Special . | . . . . . . . . Kinetic 3 | . . . . . . 3 . Thermal 3 | . . . . . . 3 . Explosive . | . . . . . . . . Electromagnetic . | . . . . . . . . Robot Hit Streak 3 | . . . . . . 3 . Robot Miss Streak 5 | . . . . . . 5 . Penetration Max . | . . . . . . . . Secondary Targets . | . . . . . . . . Shots Hit Robots 4 | . . . . . . 4 . Core Hits 6 | . . . . . . 6 . Critical Kills . | . . . . . . . . Critical Parts Destroyed . | . . . . . . . . Critical Strikes . | . . . . . . . . Melee Attacks . | . . . . . . . . Impact . | . . . . . . . . Slashing . | . . . . . . . . Piercing . | . . . . . . . . Sneak Attacks . | . . . . . . . . Combat Hostiles . | . . . . . . . . Follow-up Attacks . | . . . . . . . . Damage Inflicted 151 | . . . . . . 104 47 Guns 61 | . . . . . . 61 . Cannons . | . . . . . . . . Explosions . | . . . . . . . . Melee . | . . . . . . . . Ramming 90 | . . . . . . 43 47 Kinetic 6 | . . . . . . 6 . Thermal 55 | . . . . . . 55 . Explosive . | . . . . . . . . Electromagnetic . | . . . . . . . . Impact . | . . . . . . . . Slashing . | . . . . . . . . Piercing . | . . . . . . . . Highest Corruption 5 | . . . . . . 2 5 Average Corruption 2 | . . . . . . 2 2 Corruption Purged . | . . . . . . . . Corruption Blocked . | . . . . . . . . Effects 4 | . . . . . . 1 3 Message Errors 3 | . . . . . . 1 2 Heat Flow Errors 1 | . . . . . . . 1 Overload Shots . | . . . . . . . . Overflow Damage . | . . . . . . . . Projectiles . | . . . . . . . . Explosions . | . . . . . . . . Melee . | . . . . . . . . Knockbacks . | . . . . . . . . Impact . | . . . . . . . . Kinetic . | . . . . . . . . Secondary . | . . . . . . . . Self-Inflicted Damage 35 | . . . . . . 13 22 Shots . | . . . . . . . . Rammed 28 | . . . . . . 10 18 Targets Rammed 28 | . . . . . . 10 18 Kicked . | . . . . . . . . Crushed . | . . . . . . . . Highest Temperature 123 | . . 118 . . . 28 123 Average Temperature 48 | . . 62 . . . 16 110 Received Heat Transfer 45 | . . . . . 9 18 18 Siege Activations . | . . . . . . . . Robots Corrupted . | . . . . . . . . Combat Hostiles . | . . . . . . . . Parts Fried . | . . . . . . . . Impact Corruptions . | . . . . . . . . Robots Melted . | . . . . . . . . Combat Hostiles . | . . . . . . . . Parts Melted 2 | . . . . . . 2 . Heat Transferred 125 | . . . . . . 125 . Parts Sabotaged . | . . . . . . . . Parts Stolen . | . . . . . . . . Parts Stripped . | . . . . . . . . Power Chain Reactions . | . . . . . . . . Missiles Intercepted . | . . . . . . . . Alert | -11 -10 -10 -10 -9 -8 -7 -7 ------- Run | Scr Mat Min Exi Min Mat Fac Was Peak Influence 121 | . 76 87 . . 68 121 42 Initial 42 | . . 29 . . . 30 42 Average 49 | . 33 45 . . 11 85 36 Maximum Alert Level . | . . . . . . . . Low Security (%) 100 | . 100 100 . 100 100 100 100 Level 1 . | . . . . . . . . Level 2 . | . . . . . . . . Level 3 . | . . . . . . . . Level 4 . | . . . . . . . . Level 5 . | . . . . . . . . High Security . | . . . . . . . . Max Security . | . . . . . . . . Squads Dispatched 1 | . 1 . . . . . . Investigation 1 | . 1 . . . . . . Extermination . | . . . . . . . . Reinforcement . | . . . . . . . . Assault . | . . . . . . . . Garrison . | . . . . . . . . Intercept . | . . . . . . . . Searches Triggered . | . . . . . . . . Construction Impeded . | . . . . . . . . Haulers Reinforced . | . . . . . . . . Active Scanning Responses . | . . . . . . . . Cargo Convoy Interrupts . | . . . . . . . . Stealth | -11 -10 -10 -10 -9 -8 -7 -7 --------- Run | Scr Mat Min Exi Min Mat Fac Was Distress Signals . | . . . . . . . . Communications Jammed . | . . . . . . . . Distress Signals . | . . . . . . . . Times Spotted 18 | . 1 2 . . 4 4 7 Peak Tracking Total 6 | . 3 3 . . 4 3 6 Tactical Retreats 1 | . 1 . . . . . . Traps | -11 -10 -10 -10 -9 -8 -7 -7 ------- Run | Scr Mat Min Exi Min Mat Fac Was Traps Triggered 2 | . 1 . . . . 1 . Indirectly . | . . . . . . . . Trap Hack Attempts . | . . . . . . . . Triggered . | . . . . . . . . Disarmed . | . . . . . . . . Reprogrammed . | . . . . . . . . Reused . | . . . . . . . . Traps Extracted . | . . . . . . . . Installed . | . . . . . . . . Triggered . | . . . . . . . . Machines | -11 -10 -10 -10 -9 -8 -7 -7 ---------- Run | Scr Mat Min Exi Min Mat Fac Was Machines Disabled . | . . . . . . . . Max in Single Turn . | . . . . . . . . Machines Sabotaged . | . . . . . . . . Garrisons Compromised . | . . . . . . . . Overloaded Fab Kills . | . . . . . . . . Hacking | -11 -10 -10 -10 -9 -8 -7 -7 --------- Run | Scr Mat Min Exi Min Mat Fac Was Machines Accessed 11 | . 2 . 4 . 2 3 . Terminals 6 | . 2 . . . 2 2 . Fabricators . | . . . . . . . . Repair Stations . | . . . . . . . . Recycling Units 1 | . . . . . . 1 . Scanalyzers . | . . . . . . . . Garrison Access . | . . . . . . . . Total Hacks 16 | . 4 . 4 . 4 4 . Successful 9 | . 1 . 4 . 3 1 . Failed 7 | . 3 . . . 1 3 . Catastrophic 1 | . . . . . . 1 . Database Lockouts . | . . . . . . . . Manual 5 | . . . . . 2 3 . Terminals 10 | . 4 . . . 4 2 . Fabricators . | . . . . . . . . Repair Stations . | . . . . . . . . Recycling Units 2 | . . . . . . 2 . Scanalyzers . | . . . . . . . . Garrison Access . | . . . . . . . . Terminal Hacks 7 | . 1 . 4 . 2 . . Record 4 | . . . 4 . . . . Branch Access Points 1 | . 1 . . . . . . Emergency Access Points 1 | . . . . . 1 . . Locate Traps 1 | . . . . . 1 . . Fabricator Hacks . | . . . . . . . . Repair Station Hacks . | . . . . . . . . Recycling Unit Hacks . | . . . . . . . . Scanalyzer . | . . . . . . . . Garrison Access Hacks . | . . . . . . . . Unauthorized Hacks 2 | . . . . . 1 1 . Terminals 2 | . . . . . 1 1 . Botnet 1 | . . . . . . 1 . Disrupt 1 | . . . . . 1 . . Fabricators . | . . . . . . . . Repair Stations . | . . . . . . . . Recycling Units . | . . . . . . . . Scanalyzers . | . . . . . . . . Garrison Access . | . . . . . . . . Data Cores Recovered . | . . . . . . . . Used . | . . . . . . . . Hacking Detections 6 | . 2 . . . 1 3 . Full Trace Events . | . . . . . . . . Feedback Events . | . . . . . . . . Feedback Blocked . | . . . . . . . . Robot Schematics Acquired . | . . . . . . . . Robots Built . | . . . . . . . . Authchips . | . . . . . . . . Time . | . . . . . . . . Total Robot Build Rating . | . . . . . . . . Part Schematics Acquired . | . . . . . . . . Parts Built . | . . . . . . . . Authchips . | . . . . . . . . Time . | . . . . . . . . Total Part Build Rating . | . . . . . . . . Parts Repaired . | . . . . . . . . Time . | . . . . . . . . Parts Recycled . | . . . . . . . . Recycled Matter . | . . . . . . . . Retrieved Matter . | . . . . . . . . Retrieved Components . | . . . . . . . . Parts Scanalyzed . | . . . . . . . . Part Schematics Acquired . | . . . . . . . . Parts Damaged . | . . . . . . . . Bothacking | -11 -10 -10 -10 -9 -8 -7 -7 ------------ Run | Scr Mat Min Exi Min Mat Fac Was Used RIF Installer . | . . . . . . . . Robots Hacked 2 | . . 1 . . . 1 . Non-combat . | . . . . . . . . Combat 2 | . . 1 . . . 1 . Robot Hacks Applied 3 | . . 1 . . . 2 . find_shortcuts 2 | . . 1 . . . 1 . find_garrison 1 | . . . . . . 1 . Relay Couplers Released . | . . . . . . . . Fabnet Peak Effective % . | . . . . . . . . Robots Rewired . | . . . . . . . . Allies Hacked . | . . . . . . . . Hacks Repelled . | . . . . . . . . Allies | -11 -10 -10 -10 -9 -8 -7 -7 -------- Run | Scr Mat Min Exi Min Mat Fac Was Total Allies 3 | . . 3 . . . . . Largest Group 3 | . . 3 2 2 . . . Highest-Rated Group 40 | . . 40 32 32 . . . Highest-Rated Ally 16 | . . 16 16 16 . . . Total Orders . | . . . . . . . . Ally Attacks 15 | . . 15 . . . . . Total Damage 129 | . . 129 . . . . . Kills 2 | . . 2 . . . . . Allies Corrupted . | . . . . . . . . Allies Melted . | . . . . . . . . Intel | -11 -10 -10 -10 -9 -8 -7 -7 ------- Run | Scr Mat Min Exi Min Mat Fac Was Robot Analysis Total 2 | . . 1 . . . 1 . Derelict Logs Recovered 2 | . . 1 . 1 . . . Drone Launches . | . . . . . . . . Drone Recoveries . | . . . . . . . . Exploration | -11 -10 -10 -10 -9 -8 -7 -7 ------------- Run | Scr Mat Min Exi Min Mat Fac Was Turns Passed 755 | . 40 108 229 31 73 179 95 Spaces Moved 1251 | 1 80 151 486 78 181 218 56 Core 214 | 1 80 122 . . . . 11 Treads 105 | . . . . . . 60 45 Legs . | . . . . . . . . Wheels . | . . . . . . . . Hover . | . . . . . . . . Flight 932 | . . 29 486 78 181 158 . Fastest Speed 40 | 50 50 40 40 40 40 40 50 Average Speed 51 | 50 50 48 40 40 40 73 138 Slowest Speed 160 | 50 50 50 40 40 40 160 160 Overloaded Moves . | . . . . . . . . Propulsion Burnouts . | . . . . . . . . Robots Hopped . | . . . . . . . . Cave-ins Triggered . | . . . . . . . . Exploration Rate (%) 32 | 2 31 33 90 25 26 10 40 Regions Visited 7 Branch Regions 3 Pre-discovered Areas . | . . . . . . . . Known Exits Taken 2 | . 1 . . . 1 . . Unknown Exits Taken 4 | 1 . 1 1 1 . . . Scrap Searched . | . . . . . . . . Spaces Dug . | . . . . . . . . Terrain Destroyed . | . . . . . . . . Melee . | . . . . . . . . Projectile . | . . . . . . . . AOE . | . . . . . . . . Terrain Rammed . | . . . . . . . . Walls Destroyed . | . . . . . . . . Machines Disabled . | . . . . . . . . Actions | -11 -10 -10 -10 -9 -8 -7 -7 --------- Run | Scr Mat Min Exi Min Mat Fac Was Total 1346 | . 79 185 520 77 180 231 74 Wait 70 | . . 35 35 . . . . Move 1245 | . 79 150 485 77 180 218 56 Hop . | . . . . . . . . Pick Up . | . . . . . . . . Fast Attach . | . . . . . . . . Attach . | . . . . . . . . Detach . | . . . . . . . . Swap . | . . . . . . . . Drop . | . . . . . . . . Fire 3 | . . . . . . 3 . Melee . | . . . . . . . . Ram 25 | . . . . . . 7 18 Kick . | . . . . . . . . Crush 3 | . . . . . . 3 . Escape Stasis . | . . . . . . . . Rewire . | . . . . . . . . Trap . | . . . . . . . . Miscellaneous . | . . . . . . . . Route ------- -11/Scrapyard -10/Materials (discovered 2 exits: [*Mat] / *Min) -10/Mines (discovered 2 exits: [*Mat] / *Exi) -10/Exiles -9/Mines -8/Materials -7/Factory -7/Waste History --------- Turn | Location | Event 1 | -11/Scrapyard | Discovered new exit (range 0) 1 | -11/Scrapyard | Entered Materials 13 | -10/Materials | Identified exit to Mines 24 | -10/Materials | Discovered new exit (range 14) 41 | -10/Materials | Entered Mines 47 | -10/Mines | Assisted by bots powering up and referring to "LRC-V3" 61 | -10/Mines | Learned location of 1 exit from Materials 77 | -10/Mines | Discovered new exit (range 15) 82 | -10/Mines | Deemed a non-threat by the Exiles lab entrance 82 | -10/Mines | Discovered new exit (range 5) 149 | -10/Mines | Entered Exiles 149 | -10/Exiles | Found Exiles lab abandoned 149 | -10/Exiles | Accompanied by 2 allies 323 | -10/Exiles | Discovered new exit (range 10) 378 | -10/Exiles | Entered Mines 378 | -9/Mines | Accompanied by 2 allies 393 | -9/Mines | Learned Materials security intel 407 | -9/Mines | Discovered new exit (range 8) 409 | -9/Mines | Entered Materials 410 | -8/Materials | Identified exit to Factory 482 | -8/Materials | Entered Factory 661 | -7/Factory | Sucked down chute 661 | -7/Factory | Entered Waste 673 | -7/Waste | Spotted C-40 Crusher 687 | -7/Waste | Spotted C-40 Crusher 689 | -7/Waste | Spotted C-40 Crusher 690 | -7/Waste | Spotted C-40 Crusher 703 | -7/Waste | Spotted C-40 Crusher 731 | -7/Waste | Crushed by Compactor (1 part destroyed, 1 dropped) 732 | -7/Waste | Crushed by Compactor (1 part destroyed, 1 dropped) 748 | -7/Waste | Core integrity fell below 50% 754 | -7/Waste | Core integrity fell below 20% 756 | -7/Waste | Destroyed by C-40 Crusher with Compactor Last Messages --------------- 00745_ Slammed into C-40 Crusher. 00747_ 3 Matter crushed. 00747_ Slammed into C-40 Crusher. 00747_ 2 Matter crushed. 00748_ Slammed into C-40 Crusher. 00749_ Destabilizing: System corrupted (+1). 00750_ 4 Matter crushed. 00750_ 2 Matter crushed. 00750_ Slammed into C-40 Crusher. 00750_ 2 Matter crushed. 00751_ Slammed into C-40 Crusher. 00753_ 2 Matter crushed. 00753_ Slammed into C-40 Crusher. 00753_ 2 Matter crushed. 00754_ System corrupted: Heat flow error (+148). 00754_ Slammed into C-40 Crusher. 00755_ Destabilizing: System corrupted (+2). 00756_ 5 Matter crushed. 00756_ Slammed into C-40 Crusher. 00756_ 3 Matter crushed. Map ----- +----------------------------------------------------+ | ?????????????????????????????????????????????????? | | ?????????????????????????????????????????????????? | | ?????????????????????????????????????????????????? | | ???????????????????##########????????????????????? | | ???????????????????# !#????????????????????? | | ???????????????????# #????????????????????? | | ???????????????????# #????????????????????? | | ???????????????????# #????????????????????? | | ???????????????????? #????????????????????? | | ???????????????????? #????????????????????? | | ????????????????????? ?????????????????????? | | ?????????######?????? ??????????????????????? | | ?????????# #??????# #??????????????????????? | | ?????????# #??????# #??????????????????????? | | ?????????# #??????# #??????????????????????? | | ?????????# #??????# #??????????????????????? | | ???????### ######## #??????????????????????? | | ???????# #??????????????????????? | | ???????# #??????????????????????? | | ???????# #??????????????????????? | | ???????# #??????????????????????? | | ???????### ######## #??????????????????????? | | ?????????# #??????# CC#??????????????????????? | | ?????????# #??????# CC#??????????????????????? | | ?????????# #??????# CC%#??????????????????????? | | ???????### ######## CC@#??????????????????????? | | ???????# CC CC#??????????????????????? | | ???????# CC CC#??????????????????????? | | ???????# #??????????????????????? | | ???????# #??????????????????????? | | ???????### ######## CC#??????????????????????? | | #######??# #??????# CC#??????????????????????? | | #??# #??????# #??????????????????????? | | #??# #??????# #??????????????????????? | | #### ######## #??????????????????????? | | ??????????????????????? | | ??????????????????????? | | ??????????????????????? | | ??????????????????????? | | #### ######## ##?????????????????????? | | #??# #??????? ???????????????????????? | | #??# [#??????????????????????????????????? | | #######??# #??????????????????????????????????? | | ?????????# #??????????????????????????????????? | | ?????????######??????????????????????????????????? | | ?????????????????????????????????????????????????? | | ?????????????????????????????????????????????????? | | ?????????????????????????????????????????????????? | | ?????????????????????????????????????????????????? | | ?????????????????????????????????????????????????? | +----------------------------------------------------+ Best States ------------- Heat Dissipation 43 Energy Generation 21 Energy Capacity 240 Matter Stores 97 Matter Capacity 100 Sight Range 16 Terrain Scan Density 10 Armor Coverage 150 Resistance: EX 50 Resistance: I 25 Evasion (%) 62 Recoil Reduction 2 Item Schematics ----------------- None Robot Schematics ------------------ None Fabricated ------------ Nothing Alien Tech Used ----------------- None Achievements -------------- None Challenges ------------ None Polymind | -11 -10 -10 -10 -9 -8 -7 -7 ---------- Run | Scr Mat Min Exi Min Mat Fac Was Robots Controlled 2 | . . 1 . . . 1 . Combat Hostiles 2 | . . 1 . . . 1 . Allies . | . . . . . . . . Classes Controlled 2 | . . 1 . . . 1 . Average Host Suspicion 29 | . . 12 1 14 48 76 8 Unsuspicious Activity 3 | . . 3 . . . . . Returns to Shadow . | . . . . . . . . Fuzzy Dispatches . | . . . . . . . . Protomatter Created 38 | . . 5 . . . . 33 Used 57 | . . 6 . . . 51 . Decayed 5 | . . 5 . . . . . Highest Spend 51 | . . 6 . . . 51 . Top 5 Hosts by Kills: Y-54 Guardian (-7/Factory: 1) Game ------ Seed ResetAluminumDatajack Manual? 0 Play Time 00:11:05 Cumulative 398.9 hours Start 2022.12.28 @ 16:22:24 End 2022.12.28 @ 16:32:11 Sessions 1 Manual Loads 0 Difficulty Rogue Special Mode Winter2022/Polymind Game No. 205 Rogue 205 Adventurer 0 Explorer 0 Win Type - Total 11 Types 10/0/1/0/0/0/0/0/0 Lore% 69 Gallery% 74 Achievement% 51 Wizard Run 0 Options --------- ASCII 0 Keyboard 0 Movement Numpad Keybinds 0 Fullscreen 1 Font 18/SmallcapsGlow Map View 76x50 Tactical HUD 1 Map Filters NONE Filters NONE Steam 1 RUN: 0b837614-d499-4eaf-a484-68af6da525fd